[Event "Germany Countries-chT Youth 2022"]
[Site "Wiesbaden"]
[Date "2022.10.03"]
[Round "6"]
[White "Chandrasekher, Ritu"]
[Black "Färber, Anna"]
[Result "1-0"]
[ECO "C15"]
[WhiteElo "1262"]
[BlackElo "1165"]
[Annotator "NA RC COMBH"]
[PlyCount "87"]
[EventDate "2022.09.28"]
[EventType "team-tourn"]
[EventRounds "7"]
[EventCountry "GER"]
[SourceTitle "playchess.com"]
[Source "ChessBase"]
[SourceQuality "1"]
[TimeControl "40/5400+30:1800+30"]

1. e4 {[%emt 0:00:03]} e6 {[%emt 0:00:06]} 2. d4 {[%emt 0:00:05]} d5 {[%emt 0:00:06]} 3. Nc3 {[%emt 0:00:08]} Bb4 {[%emt 0:00:08]} 4. a3 {[%emt 0:00:24]} Bxc3+ {[%emt 0:00:09]} 5. bxc3 {[%emt 0:00:11]} dxe4 {[%emt 0:00:07]} 6. Qg4 {[%emt 0:00:32]} Nf6 {[%emt 0:00:25]} 7. Qxg7 {[%emt 0:00:32]} Rg8 {[%emt 0:00:10]} 8. Qh6 {[%emt 0:00:19]} c5 {[%emt 0:00:13]} 9. Ne2 {[%emt 0:01:46]} Nc6 {[%emt 0:00:34]} 10. Qe3 {[%emt 0:01:18]} Bd7 {[%emt 0:01:39]} 11. Ng3 {[%emt 0:02:06]} Qb6 {[%emt 0:03:45]} 12. Nxe4 {[%emt 0:04:22]} Ng4 {[%emt 0:03:49]} 13. Qf4 {[%emt 0:04:22]} f5 {[%emt 0:05:01]} 14. Nxc5 {[%emt 0:03:30]} Qa5 {[%emt 0:05:59]} 15. Qd2 {[%emt 0:03:18]} Qc7 {[%emt 0:04:13]} 16. Be2 {[%emt 0:01:12]} Ne7 {[%emt 0:06:39]} 17. h3 {[%emt 0:03:22]} Nf6 {[%emt 0:02:07]} 18. Qe3 {[%emt 0:03:35]} Qc6 {[%emt 0:03:09]} 19. Bf3 {[%emt 0:01:51]} Ne4 {[%emt 0:02:37]} 20. Nxe4 {[%emt 0:01:49]} fxe4 {[%emt 0:00:19]} 21. Bxe4 {[%emt 0:00:33]} Qc7 {[%emt 0:01:04]} 22. Bd2 {[%emt 0:01:26]} Bc6 {[%emt 0:01:27]} 23. Qf3 {[%emt 0:03:15]} Rf8 {[%emt 0:01:28]} 24. Bxc6+ {[%emt 0:01:15]} Nxc6 {[%emt 0:00:29]} 25. Qh5+ {[%emt 0:00:33]} Rf7 {[%emt 0:01:00]} 26. Qg4 {[%emt 0:03:36]} Qd6 {[%emt 0:02:50]} 27. Qg8+ {[%emt 0:01:49]} Qf8 {[%emt 0:00:43]} 28. Qxf8+ {[%emt 0:00:53]} Rxf8 {[%emt 0:00:05]} 29. Rb1 {[%emt 0:00:43]} O-O-O {[%emt 0:00:23]} 30. Bh6 {[%emt 0:01:56]} Rg8 {[%emt 0:00:20]} 31. O-O {[%emt 0:01:54]} e5 {[%emt 0:00:39]} 32. dxe5 {[%emt 0:02:34]} Nxe5 {[%emt 0:00:17]} 33. Rbd1 {[%emt 0:02:27]} Nc4 {[%emt 0:01:33]} 34. a4 {[%emt 0:01:48]} Na3 {[%emt 0:01:13]} 35. h4 {[%emt 0:02:46]} Rde8 {[%emt 0:00:50]} 36. f4 {[%emt 0:05:52]} Re6 {[%emt 0:01:27]} 37. Bg5 {[%emt 0:02:11]} Nxc2 {[%emt 0:02:51]} 38. f5 {[%emt 0:03:04]} Ree8 {[%emt 0:00:54]} 39. f6 {[%emt 0:01:44]} Ref8 {[%emt 0:03:03]} 40. Rd2 {[%emt 0:05:15]} Na3 {[%emt 0:01:16]} 41. Kh2 {[%emt 0:33:11]} Kc7 {[%emt 0:30:49]} 42. Rdf2 {[%emt 0:00:59]} Rg6 {[%emt 0:01:14]} 43. f7 {[%emt 0:01:09]} Re6 {[%emt 0:00:38]} 44. Rf6 {[%emt 0:01:09]} 1-0

[Event "Germany Countries-chT Youth 2022"]
[Site "Wiesbaden"]
[Date "2022.10.03"]
[Round "6"]
[White "Hoffmann, Sophia"]
[Black "Gavrylyuk, Oleksandr"]
[Result "1-0"]
[ECO "D00"]
[WhiteElo "1258"]
[BlackElo "1263"]
[Annotator "NA RC COMBH"]
[PlyCount "85"]
[EventDate "2022.09.28"]
[EventType "team-tourn"]
[EventRounds "7"]
[EventCountry "GER"]
[SourceTitle "playchess.com"]
[Source "ChessBase"]
[SourceQuality "1"]
[TimeControl "40/5400+30:1800+30"]

1. d4 {[%emt 0:00:03]} d5 {[%emt 0:00:09]} 2. Bf4 {[%emt 0:00:04]} c6 {[%emt 0:00:12]} 3. c3 {[%emt 0:00:28]} Nf6 {[%emt 0:00:25]} 4. Nf3 {[%emt 0:00:09]} Bf5 {[%emt 0:00:22]} 5. Nbd2 {[%emt 0:00:28]} e6 {[%emt 0:00:30]} 6. e3 {[%emt 0:00:14]} Nbd7 {[%emt 0:00:09]} 7. Be2 {[%emt 0:01:08]} Be7 {[%emt 0:00:24]} 8. O-O {[%emt 0:00:34]} O-O {[%emt 0:00:39]} 9. Ne5 {[%emt 0:01:36]} Nxe5 {[%emt 0:01:51]} 10. Bxe5 {[%emt 0:01:11]} Nd7 {[%emt 0:00:36]} 11. Bg3 {[%emt 0:00:53]} c5 {[%emt 0:00:47]} 12. Bg4 {[%emt 0:02:00]} Bg6 {[%emt 0:00:59]} 13. Rc1 {[%emt 0:03:17]} b5 {[%emt 0:01:52]} 14. Nf3 {[%emt 0:09:35]} a5 {[%emt 0:03:51]} 15. a4 {[%emt 0:04:04]} b4 {[%emt 0:04:04]} 16. cxb4 {[%emt 0:01:31]} cxb4 {[%emt 0:03:29]} 17. Rc7 {[%emt 0:03:20]} Nb6 {[%emt 0:07:45]} 18. Rb7 Rc8 {[%emt 0:01:59]} 19. Ra7 {[%emt 0:11:35]} Nc4 {[%emt 0:01:19]} 20. b3 {[%emt 0:01:23]} Na3 {[%emt 0:02:07]} 21. Qe2 {[%emt 0:09:22]} Bc2 {[%emt 0:02:28]} 22. Rc1 {[%emt 0:09:54]} Bd6 {[%emt 0:10:38]} 23. Nd2 {[%emt 0:04:31]} Bxg3 {[%emt 0:01:40]} 24. hxg3 {[%emt 0:00:29]} Qb6 {[%emt 0:01:11]} 25. Qa6 {[%emt 0:04:45]} Qxa6 {[%emt 0:00:37]} 26. Rxa6 {[%emt 0:00:05]} Bd3 {[%emt 0:00:32]} 27. Rxc8 {[%emt 0:01:36]} Bxa6 {[%emt 0:00:36]} 28. Rc5 {[%emt 0:00:52]} f5 {[%emt 0:11:57]} 29. Rxa5 {[%emt 0:02:56]} fxg4 {[%emt 0:01:31]} 30. Rxa6 {[%emt 0:00:08]} Rc8 {[%emt 0:01:53]} 31. Kf1 {[%emt 0:06:40]} Rc2 {[%emt 0:01:41]} 32. Ke1 {[%emt 0:01:13]} Rc1+ {[%emt 0:00:33]} 33. Ke2 {[%emt 0:00:22]} Rc2 {[%emt 0:00:18]} 34. Kd1 {[%emt 0:00:58]} Rb2 {[%emt 0:00:34]} 35. Rxe6 {[%emt 0:01:17]} Nb1 {[%emt 0:00:21]} 36. Nxb1 {[%emt 0:00:58]} Rxb1+ {[%emt 0:00:10]} 37. Kc2 {[%emt 0:02:47]} Rf1 {[%emt 0:00:22]} 38. Rb6 {[%emt 0:00:36]} Rxf2+ {[%emt 0:00:13]} 39. Kd3 {[%emt 0:01:06]} Rxg2 {[%emt 0:01:52]} 40. Rxb4 {[%emt 0:01:51]} Rxg3 {[%emt 0:00:16]} 41. a5 {[%emt 0:30:24]} Rg2 {[%emt 0:30:11]} 42. a6 {[%emt 0:00:33]} Ra2 {[%emt 0:00:22]} 43. Ra4 {[%emt 0:00:08]} 1-0

[Event "Germany Countries-chT Youth 2022"]
[Site "Wiesbaden"]
[Date "2022.10.03"]
[Round "6"]
[White "Koepnick, Amanda"]
[Black "Meng, Yuxuan"]
[Result "1/2-1/2"]
[ECO "B24"]
[WhiteElo "1244"]
[BlackElo "1472"]
[Annotator "NA RC COMBH"]
[PlyCount "61"]
[EventDate "2022.09.28"]
[EventType "team-tourn"]
[EventRounds "7"]
[EventCountry "GER"]
[SourceTitle "playchess.com"]
[Source "ChessBase"]
[SourceQuality "1"]
[TimeControl "40/5400+30:1800+30"]

1. e4 {[%emt 0:00:03]} c5 {[%emt 0:00:06]} 2. Nc3 {[%emt 0:00:10]} Nc6 {[%emt 0:00:09]} 3. g3 {[%emt 0:00:11]} g6 {[%emt 0:00:05]} 4. Bg2 {[%emt 0:00:07]} Bg7 {[%emt 0:00:05]} 5. f4 {[%emt 0:00:13]} d6 {[%emt 0:00:17]} 6. Nf3 {[%emt 0:00:26]} e6 {[%emt 0:00:28]} 7. O-O {[%emt 0:00:31]} Nge7 {[%emt 0:00:29]} 8. d3 {[%emt 0:00:49]} O-O {[%emt 0:00:24]} 9. Be3 {[%emt 0:00:48]} Nd4 {[%emt 0:00:37]} 10. Rb1 {[%emt 0:02:30]} Bd7 {[%emt 0:02:37]} 11. Ne2 {[%emt 0:01:39]} Nxf3+ {[%emt 0:00:46]} 12. Bxf3 {[%emt 0:00:17]} Nc6 {[%emt 0:01:05]} 13. c3 {[%emt 0:02:46]} Rb8 {[%emt 0:08:56]} 14. d4 {[%emt 0:05:59]} Qe7 {[%emt 0:06:41]} 15. Qd2 {[%emt 0:04:56]} Rfd8 {[%emt 0:03:27]} 16. b4 {[%emt 0:05:18]} cxb4 {[%emt 0:07:33]} 17. cxb4 Re8 {[%emt 0:01:02]} 18. Nc3 {[%emt 0:04:57]} Qf6 {[%emt 0:12:43]} 19. Rfd1 {[%emt 0:07:59]} Rbd8 {[%emt 0:09:14]} 20. Ne2 {[%emt 0:07:33]} e5 {[%emt 0:04:50]} 21. Kg2 {[%emt 0:07:19]} b5 {[%emt 0:12:47]} 22. d5 {[%emt 0:05:53]} Ne7 {[%emt 0:05:32]} 23. Bxa7 {[%emt 0:03:30]} exf4 {[%emt 0:04:15]} 24. Qxf4 {[%emt 0:03:35]} Qxf4 {[%emt 0:01:22]} 25. gxf4 {[%emt 0:03:49]} Ra8 {[%emt 0:00:33]} 26. Be3 {[%emt 0:03:22]} Rxa2 {[%emt 0:00:37]} 27. Rd2 {[%emt 0:01:33]} Rxd2 {[%emt 0:02:24]} 28. Bxd2 {[%emt 0:00:10]} f5 {[%emt 0:00:29]} 29. Nc3 {[%emt 0:04:24]} fxe4 {[%emt 0:04:33]} 30. Bxe4 {[%emt 0:01:49]} Nf5 {[%emt 0:01:06]} 31. Bd3 {[%emt 0:04:45]} 1/2-1/2

[Event "Germany Countries-chT Youth 2022"]
[Site "Wiesbaden"]
[Date "2022.10.03"]
[Round "6"]
[White "Alhassan, Jodi"]
[Black "Haug, Mara"]
[Result "0-1"]
[ECO "B21"]
[WhiteElo "1227"]
[BlackElo "1611"]
[Annotator "NA RC COMBH"]
[PlyCount "81"]
[EventDate "2022.09.28"]
[EventType "team-tourn"]
[EventRounds "7"]
[EventCountry "GER"]
[SourceTitle "playchess.com"]
[Source "ChessBase"]
[SourceQuality "1"]
[TimeControl "40/5400+30:1800+30"]

1. e4 {[%emt 0:00:07]} c5 {[%emt 0:00:06]} 2. d4 {[%emt 0:00:19]} cxd4 {[%emt 0:00:06]} 3. c3 {[%emt 0:00:04]} dxc3 {[%emt 0:00:08]} 4. Nxc3 {[%emt 0:00:11]} e6 {[%emt 0:00:10]} 5. Nf3 {[%emt 0:00:08]} a6 {[%emt 0:00:09]} 6. Bc4 {[%emt 0:00:17]} Nc6 {[%emt 0:00:14]} 7. O-O {[%emt 0:00:21]} Bc5 {[%emt 0:04:27]} 8. Bf4 {[%emt 0:04:27]} Nge7 {[%emt 0:02:01]} 9. Qe2 {[%emt 0:07:48]} O-O {[%emt 0:01:10]} 10. Rfd1 {[%emt 0:01:08]} Ng6 {[%emt 0:01:52]} 11. Bg3 {[%emt 0:09:20]} b5 {[%emt 0:02:59]} 12. Bb3 {[%emt 0:04:46]} Qe7 {[%emt 0:04:28]} 13. Rac1 {[%emt 0:04:03]} Bb7 {[%emt 0:03:00]} 14. a3 {[%emt 0:07:12]} Rfd8 {[%emt 0:02:33]} 15. e5 {[%emt 0:11:19]} d5 {[%emt 0:09:55]} 16. exd6 {[%emt 0:03:29]} Bxd6 {[%emt 0:00:58]} 17. Bxd6 {[%emt 0:01:25]} Rxd6 {[%emt 0:00:31]} 18. Rxd6 {[%emt 0:02:57]} Qxd6 {[%emt 0:00:04]} 19. Ne4 {[%emt 0:00:08]} Nd4 {[%emt 0:18:37]} 20. Nxd4 {[%emt 0:03:57]} Qxd4 {[%emt 0:00:12]} 21. Nc3 {[%emt 0:27:34]} Bxg2 {[%emt 0:12:02]} 22. Rd1 {[%emt 0:02:05]} Qh4 {[%emt 0:10:52]} 23. Qe3 {[%emt 0:05:41]} Qg4 {[%emt 0:03:28]} 24. Qg3 {[%emt 0:00:41]} Qxg3 {[%emt 0:00:08]} 25. hxg3 {[%emt 0:00:11]} Bf3 {[%emt 0:01:23]} 26. Rd3 {[%emt 0:01:16]} Bc6 {[%emt 0:03:16]} 27. Re3 {[%emt 0:02:10]} Rd8 {[%emt 0:00:47]} 28. Re2 {[%emt 0:00:45]} Ne7 {[%emt 0:00:42]} 29. Kh2 {[%emt 0:00:34]} Rd4 {[%emt 0:01:44]} 30. Nd1 {[%emt 0:00:22]} Bf3 {[%emt 0:01:11]} 31. Re1 {[%emt 0:00:13]} Rd2 {[%emt 0:01:05]} 32. Kg1 {[%emt 0:00:36]} g6 {[%emt 0:01:24]} 33. Ne3 {[%emt 0:00:42]} Rxb2 {[%emt 0:00:14]} 34. Bd1 {[%emt 0:00:31]} Rb1 {[%emt 0:01:55]} 35. Kf1 {[%emt 0:00:30]} Bxd1 {[%emt 0:01:05]} 36. Rxd1 {[%emt 0:00:19]} Rxd1+ {[%emt 0:00:09]} 37. Nxd1 {[%emt 0:00:05]} Kg7 {[%emt 0:00:30]} 38. Ke2 {[%emt 0:00:32]} Kf6 {[%emt 0:00:13]} 39. Nc3 {[%emt 0:00:46]} Ke5 {[%emt 0:01:10]} 40. Ke3 {[%emt 0:00:22]} Nd5+ {[%emt 0:00:23]} 41. Nxd5 {[%emt 0:30:07]} 0-1

[Event "Germany Countries-chT Youth 2022"]
[Site "Wiesbaden"]
[Date "2022.10.04"]
[Round "7"]
[White "Lutsko, Artem"]
[Black "Weishaeutel, Moritz"]
[Result "1/2-1/2"]
[ECO "D30"]
[WhiteElo "2431"]
[BlackElo "2401"]
[Annotator "TA"]
[PlyCount "86"]
[EventDate "2022.09.28"]
[EventType "team-tourn"]
[EventRounds "7"]
[EventCountry "GER"]
[SourceTitle "playchess.com"]
[Source "ChessBase"]
[SourceQuality "1"]
[TimeControl "40/5400+30:1800+30"]

{[%evp 15,86,16,15,5,12,25,32,34,45,48,48,46,47,47,47,50,65,41,30,47,83,18,26,0,21,23,80,69,85,114,130,103,102,74,69,67,70,70,63,63,63,63,69,63,70,71,104,99,112,77,150,127,143,38,37,0,0,0,0,0,0,0,0,0,0,0,0,0,11,0,0,0,7]} 1. d4 {[%emt 0:00:01]} d5 {[%emt 0:00:05]} 2. c4 {[%emt 0:00:05]} e6 {[%emt 0:00:05]} 3. Nf3 {[%emt 0:00:04]} c6 {[%emt 0:00:06]} 4. e3 {[%emt 0:00:04]} f5 {[%emt 0:00:58]} 5. Be2 {[%emt 0:01:40]} Nf6 {[%emt 0:00:07]} 6. O-O {[%emt 0:00:30]} Bd6 {[%emt 0:00:30]} 7. b3 {[%emt 0:00:04]} Qe7 {[%emt 0:00:27]} 8. Bb2 {[%emt 0:00:41] 8.a4 is the fancy move.} O-O {[%emt 0:01:32]} 9. Qc1 {[%emt 0:00:07] A84: Dutch Defence: 2 c4 Miscellaneous.} b6 {[%emt 0:05:39]} 10. Ba3 {[%emt 0:00:03]} Bxa3 {[%emt 0:00:43]} 11. Qxa3 {[%emt 0:01:27] White is slightly better.} Qxa3 {[%emt 0:04:47]} 12. Nxa3 {[%emt 0:00:01]} Nbd7 {[%emt 0:00:22]} 13. Rfc1 {[%emt 0:03:04]} Bb7 {[%emt 0:03:15]} 14. cxd5 {[%emt 0:00:05]} exd5 {[%emt 0:00:35]} 15. Nc2 {[%emt 0:00:03]} Rfe8 {[%emt 0:03:20] [#]} 16. Kf1 $146 {[%emt 0:00:25]} (16. Nb4 $5 {[%cal Rb4c6]}) ({Predecessor:} 16. Bf1 Rac8 17. b4 Ne4 18. a4 a6 19. Nce1 Nd6 20. Nd3 Nc4 21. Nf4 b5 22. Nd3 {1-0 (45) Yermolinsky,A (2522)-Bonin,J (2369) Ledyard 2009}) 16... Ne4 {[%emt 0:03:18]} 17. Nb4 {[%emt 0:00:41]} c5 {[%emt 0:01:54]} 18. Nd3 {[%emt 0:01:25]} (18. Bb5 $16) 18... Rac8 {[%emt 0:02:09]} 19. Nfe5 {[%emt 0:02:33]} Nxe5 {[%emt 0:00:46]} 20. Nxe5 {[%emt 0:00:01][%cal Bd3e5,Be5f3,Bf3d4][%mdl 32]} f4 {[%emt 0:12:07]} (20... Nd6 $11 {keeps the balance.}) 21. exf4 $16 {[%emt 0:06:51]} cxd4 {[%emt 0:00:08]} 22. Nf3 {[%emt 0:20:51]} Rxc1+ {[%emt 0:03:24]} 23. Rxc1 {[%emt 0:00:01]} Nc3 {[%emt 0:00:08]} 24. Nxd4 {[%emt 0:00:12]} Nxa2 {[%emt 0:12:09]} 25. Ra1 {[%emt 0:41:39]} Rc8 {[%emt 0:00:20]} 26. Ke1 {[%emt 0:00:02]} Rc1+ {[%emt 0:01:07]} 27. Rxc1 {[%emt 0:01:14]} Nxc1 $14 {[%emt 0:00:04][%mdl 4096] Endgame KBN-KBN} 28. Bf1 {[%emt 0:00:05]} Na2 {[%emt 0:03:24]} 29. Kd2 {[%emt 0:00:28]} Nb4 {[%emt 0:17:19]} 30. g4 {[%emt 0:00:29]} Nc6 {[%emt 0:02:39]} 31. Ke3 {[%emt 0:01:19]} Kf7 {[%emt 0:03:02]} 32. Bd3 {[%emt 0:03:58]} g6 {[%emt 0:01:31]} (32... h6 $142) 33. f5 $16 {[%emt 0:01:07] White is more active.} g5 {[%emt 0:02:30] [#]} 34. Ne6 {[%emt 0:04:38]} (34. Ba6 $1 $16 {[%cal Ra6b7][%mdl 512]} Ba8 35. Nxc6 Bxc6 36. f4) 34... Kf6 $14 {[%emt 0:00:11][%cal Od5d4]} 35. Bb5 {[%emt 0:04:20]} (35. f4 $5 {[%cal Rf4g5]} d4+ 36. Ke4 $11) 35... d4+ {[%emt 0:01:51] The position is equal.} 36. Kd2 {[%emt 0:03:18]} Ne5 {[%emt 0:00:14] Strongly threatening ...Nf3+.} 37. Be2 {[%emt 0:00:04]} d3 {[%emt 0:01:06]} 38. Bd1 {[%emt 0:01:06]} Nf3+ {[%emt 0:05:07]} 39. Kxd3 {[%emt 0:01:10]} Nxh2 {[%emt 0:00:05]} 40. Ke3 {[%emt 0:01:14]} Nf1+ {[%emt 0:02:57]} 41. Kd4 {[%emt 0:30:43][%cal Oe6g5]} Nd2 {[%emt 0:32:56]} 42. Ke3 {[%emt 0:00:00]} Nf1+ {[%emt 0:00:00]} 43. Kd4 {[%emt 0:00:00][%cal Oe6g5]} Nd2 {[%emt 0:00:00] Weighted Error Value: White=0.14 (very precise) /Black=0.11 (very precise)} 1/2-1/2

[Event "Germany Countries-chT Youth 2022"]
[Site "Wiesbaden"]
[Date "2022.10.04"]
[Round "7"]
[White "Schmider, Niklas"]
[Black "Burian, Simon"]
[Result "1-0"]
[ECO "A05"]
[WhiteElo "2407"]
[BlackElo "2196"]
[Annotator "TA"]
[PlyCount "81"]
[EventDate "2022.09.28"]
[EventType "team-tourn"]
[EventRounds "7"]
[EventCountry "GER"]
[SourceTitle "playchess.com"]
[Source "ChessBase"]
[SourceQuality "1"]
[TimeControl "40/5400+30:1800+30"]

{[%evp 11,81,35,33,31,80,53,55,41,60,58,64,69,67,64,64,63,67,32,51,34,33,31,56,14,65,60,63,64,64,72,65,68,89,86,116,79,95,96,178,125,133,126,127,136,140,140,237,234,328,330,322,318,316,329,335,338,334,333,319,320,517,513,463,465,708,685,660,665,962,1004,954,956]} 1. Nf3 {[%emt 0:00:15]} Nf6 {[%emt 0:00:05]} 2. g3 {[%emt 0:00:04]} b5 {[%emt 0:00:06]} 3. Bg2 {[%emt 0:00:14]} Bb7 {[%emt 0:00:07]} 4. b3 {[%emt 0:00:42]} e6 {[%emt 0:00:51]} 5. c4 {[%emt 0:00:55]} a6 {[%emt 0:01:06]} 6. Nc3 {[%emt 0:01:21]} b4 {[%emt 0:01:29]} 7. Na4 {[%emt 0:00:10] A13: English Opening: 1...e6.} d5 {[%emt 0:01:51]} (7... d6 $14) 8. cxd5 {[%emt 0:15:55]} Bxd5 {[%emt 0:03:23]} 9. O-O {[%emt 0:01:34] [#] White is slightly better.} Nbd7 $146 {[%emt 0:05:09]} ({Predecessor:} 9... Be7 10. d3 O-O 11. Qc2 Nbd7 12. e4 Bb7 13. h3 c5 14. Be3 Rc8 15. Rac1 Nb6 16. Nxb6 Qxb6 {1-0 (52) Pigusov,E (2500)-Romanishin,O (2560) Irkutsk 1986}) 10. d3 {[%emt 0:03:17]} c5 {[%emt 0:04:43]} 11. e4 {[%emt 0:09:23]} Bb7 {[%emt 0:04:53]} 12. Be3 {[%emt 0:11:20]} Be7 {[%emt 0:07:59]} 13. Rc1 {[%emt 0:00:10][%cal Ra4c5]} Rc8 {[%emt 0:00:11]} 14. h3 {[%emt 0:11:48]} O-O {[%emt 0:03:08]} 15. Qd2 {[%emt 0:04:07]} Qa5 {[%emt 0:06:05]} 16. Qc2 {[%emt 0:03:19]} Rfd8 {[%emt 0:04:21]} 17. Rfd1 {[%emt 0:02:41]} Bf8 {[%emt 0:09:58]} (17... Ne8 $11) 18. Nd2 $14 {[%emt 0:07:19]} Ne8 {[%emt 0:07:08]} 19. Nc4 {[%emt 0:02:04]} Qc7 {[%emt 0:02:54]} 20. Bf4 {[%emt 0:01:06]} e5 {[%emt 0:00:54]} 21. Bg5 {[%emt 0:01:45]} f6 {[%emt 0:00:38]} 22. Be3 {[%emt 0:02:21]} Bc6 {[%emt 0:08:13]} 23. Ncb2 {[%emt 0:01:26]} Bb5 {[%emt 0:02:25]} 24. h4 {[%emt 0:01:23]} Nb6 {[%emt 0:02:43]} (24... Qd6 $16 {keeps fighting.}) 25. Bh3 {[%emt 0:00:59]} (25. Nxc5 $18 {Threatens to win with Qd2.} Nd7 26. Nba4) 25... Bd7 $16 {[%emt 0:00:49]} 26. Bxd7 {[%emt 0:00:35]} Nxd7 {[%emt 0:00:44]} 27. Qc4+ {[%emt 0:04:43]} Kh8 {[%emt 0:00:07]} 28. Qxa6 {[%emt 0:01:29] White is much more active.} Nd6 {[%emt 0:02:52]} (28... Qb8 $16 29. Qe6 Nc7) 29. Nxc5 $1 $18 {[%emt 0:04:05]} Ra8 {[%emt 0:00:25]} (29... Nxc5 $142 30. Rxc5 (30. Bxc5 Ra8 $16) 30... Qd7 31. Rxc8 Qxc8 32. Qxc8 Rxc8) 30. Ne6 $1 {[%emt 0:00:36][%csl LRc7,LRd8]} Qxc1 {[%emt 0:01:54]} 31. Rxc1 {[%emt 0:00:09][%cal Bd1c1,Bc1c8,Bc8d8][%mdl 32]} Rxa6 {[%emt 0:00:07]} 32. Nxd8 {[%emt 0:00:05][%cal Be6d8,Bd8c6,Bc6b8,Bb8d7,Bd7c5][%mdl 32] Black must now prevent Rc7.} Rxa2 {[%emt 0:00:17]} 33. Na4 {[%emt 0:00:22]} (33. Nc4 Nb5 $16) 33... Nb5 {[%emt 0:02:30] Against Rc7} 34. Rc8 {[%emt 0:05:37]} Kg8 {[%emt 0:00:30]} 35. Nc6 {[%emt 0:00:54] Inhibits Be7.} Kf7 $2 {[%emt 0:01:15] [#]} (35... Nd4 36. Bxd4 (36. Nxd4 exd4 37. Bxd4 Kf7 $16) 36... exd4 37. Nxd4 Kf7) 36. Rd8 {[%emt 0:00:36] White is clearly winning.} Ke6 {[%emt 0:00:33]} 37. Nb8 {[%emt 0:00:10]} Rxa4 {[%emt 0:00:47]} (37... Nxb8 $142 38. Rxb8 (38. Rxf8 Nc6 $16) 38... Nc3 39. Rxf8 Nxa4 40. bxa4 Rxa4) 38. bxa4 {[%emt 0:01:26]} b3 {[%emt 0:00:04] [#] Strongly threatening ...b2.} 39. Bc1 {[%emt 0:00:25]} ({Weaker is} 39. Rxd7 b2 40. Rb7 b1=Q+ 41. Kh2 Qxd3 42. Rxb5 Bd6 $15) 39... Ba3 {[%emt 0:00:21]} 40. Nxd7 {[%emt 0:01:57]} Bxc1 {[%emt 0:00:20]} 41. Nc5+ {[%emt 0:30:25] Weighted Error Value: White=0.07 (flawless) /Black=0.26 (precise)} ({Avoid the trap} 41. axb5 $2 b2 42. Nc5+ Ke7 43. Rd7+ Ke8 $19) 1-0

[Event "Germany Countries-chT Youth 2022"]
[Site "Wiesbaden"]
[Date "2022.10.04"]
[Round "7"]
[White "Färber, David"]
[Black "Boder, Jan"]
[Result "1/2-1/2"]
[ECO "C80"]
[WhiteElo "2354"]
[BlackElo "2341"]
[Annotator "TA"]
[PlyCount "49"]
[EventDate "2022.09.28"]
[EventType "team-tourn"]
[EventRounds "7"]
[EventCountry "GER"]
[SourceTitle "playchess.com"]
[Source "ChessBase"]
[SourceQuality "1"]
[TimeControl "40/5400+30:1800+30"]

{[%evp 24,49,39,33,27,37,47,25,33,26,29,26,31,16,31,14,10,2,1,0,0,0,0,0,8,0,0,-23]} 1. e4 {[%emt 0:00:02]} e5 {[%emt 0:00:07]} 2. Nf3 {[%emt 0:00:15]} Nc6 {[%emt 0:00:06]} 3. Bb5 {[%emt 0:00:07][%cal Bf1b5,Bb5a4,Ba4b3][%mdl 32]} a6 {[%emt 0:00:05]} 4. Ba4 {[%emt 0:00:08]} Nf6 {[%emt 0:00:09]} 5. O-O {[%emt 0:00:07]} Nxe4 {[%emt 0:00:09]} 6. d4 {[%emt 0:00:09]} b5 {[%emt 0:00:11]} 7. Bb3 {[%emt 0:00:09]} d5 {[%emt 0:00:03]} 8. dxe5 {[%emt 0:00:10]} Be6 {[%emt 0:00:08]} 9. Nbd2 {[%emt 0:00:13]} Nc5 {[%emt 0:00:20]} 10. c3 {[%emt 0:00:15]} d4 {[%emt 0:00:26]} 11. Bxe6 {[%emt 0:00:52]} Nxe6 {[%emt 0:00:11]} 12. cxd4 {[%emt 0:00:09]} Ncxd4 {[%emt 0:00:16]} 13. a4 {[%emt 0:00:41]} Bb4 {[%emt 0:01:53] C80: Open Ruy Lopez: Sidelines and 9 Nbd2.} 14. axb5 {[%emt 0:00:17]} Nxb5 {[%emt 0:00:09]} (14... axb5 $2 15. Rxa8 Qxa8 16. Nxd4 Nxd4 17. Qg4 $18) 15. Qa4 {[%emt 0:02:55]} Bxd2 {[%emt 0:00:21] White has an edge.} 16. Bxd2 {[%emt 0:00:15]} O-O {[%emt 0:00:09]} 17. Be3 {[%emt 0:04:31]} c5 {[%emt 0:01:26]} 18. Rfd1 {[%emt 0:04:31]} Qb6 {[%emt 0:02:46]} 19. h4 {[%emt 0:05:08] [#]} Nbc7 $146 {[%emt 0:03:39] The position is equal.} ({Predecessor:} 19... h5 20. Qe4 Nbd4 21. Bxd4 cxd4 22. Nxd4 Qb4 23. Qe3 Nxd4 24. Qxd4 Rab8 25. Rxa6 Qxd4 26. Rxd4 Rxb2 {½-½ (59) Hovhannisyan,R (2591)-Jones,G (2652) Chennai 2022}) 20. Rd2 {[%emt 0:05:31]} Rfd8 {[%emt 0:09:54]} 21. Rad1 {[%emt 0:00:42]} Rxd2 {[%emt 0:00:51]} 22. Rxd2 {[%emt 0:00:14]} Qb4 {[%emt 0:00:27]} 23. Qc6 {[%emt 0:05:34]} Qb5 {[%emt 0:05:20]} 24. Qe4 {[%emt 0:05:04] [#] Strongly threatening Ng5.} h6 {[%emt 0:02:37] Inhibits Ng5.} 25. Qc2 {[%emt 0:02:52] Weighted Error Value: White=0.07 (flawless) /Black=0.00 (flawless)} 1/2-1/2